bitfinex/quotes_ETHUSD_20240816
["timestamp","ask_amount","ask_price","bid_price","bid_amount"]
[1723826538886,5.097882,2598.6,2598.2,0.1958]
[1723826539195,5.097882,2598.6,2598.3,0.04437101]
[1723826539790,4.8,2598.8,2598.2,0.1958]
[1723826540112,4.8,2598.6,2598.2,0.1958]
[1723826540298,8.6483,2598.6,2598.3,0.04437101]
[1723826540602,9.897926,2598.6,2598.2,0.1958]
[1723826541126,9.897926,2598.6,2598.3,0.04437101]
[1723826541330,3.84852,2598.4,2598.3,0.04437101]
[1723826541541,3.84867,2598.3,2598.2,0.1958]
[1723826541894,1.3746516,2598.4,2598.2,0.24029254]
[1723826542090,4.8,2598.6,2598.2,0.24029254]
[1723826542292,4.8,2598.6,2598.2,0.1958]
[1723826542582,9.513155,2598.6,2598.3,0.04446857]
[1723826542784,3.84852,2598.4,2598.3,0.04446857]
[1723826542988,7.69699,2598.5,2598.2,0.1958]
[1723826543188,4.32849,2598.5,2598.2,0.1958]
[1723826543388,4.32849,2598.5,2598.3,0.04446857]
[1723826543647,8.17699,2598.5,2598.3,0.04446857]
[1723826543792,4.32849,2598.5,2598.2,0.1958]
[1723826544241,4.32849,2598.5,2598.3,0.04446857]
[1723826544456,4.761369,2598.4,2598.3,0.04446857]
[1723826544603,6.34857,2598.3,2598.2,0.1958]
[1723826544802,14.99724,2598.3,2598.2,0.1958]
[1723826545151,14.14857,2598.3,2598.2,0.23886938]
[1723826545306,16.0875789,2598.3,2598.2,0.23886938]
[1723826545505,19.9362489,2598.3,2598.2,0.1958]
[1723826545700,16.0875789,2598.3,2598.2,0.1958]
[1723826546660,4.8,2598.3,2598.2,0.1958]
[1723826547008,4.8,2598.3,2598.2,0.23886938]
[1723826548948,4.8,2598.4,2598.2,0.23886938]
[1723826549949,8.64853,2598.4,2598.2,0.23886938]
[1723826550155,0.864853,2598.3,2598.2,0.23886938]
[1723826550308,8.64853,2598.4,2598.2,0.23886938]
[1723826550506,4.8,2598.4,2598.2,0.23886938]
[1723826552804,8.64854,2598.4,2598.2,0.23886938]
[1723826554362,4.8,2598.4,2598.2,0.23886938]
[1723826554512,8.64852,2598.4,2598.2,0.23886938]
[1723826554964,4.8,2598.4,2598.3,3.84867]
[1723826555114,4.8,2598.4,2598.2,0.23886938]
[1723826555115,4.8,2598.9,2598.7,3.848]
[1723826555315,4.8,2599.1,2598.5,0.07695163]
[1723826555514,5.2015524,2599.8,2599.1,3.84735]
[1723826555750,5.2015524,2599.8,2599.2,0.769498]
[1723826555751,4.8,2599.8,2599.2,0.769498]
[1723826556074,3.84718,2599.3,2599.2,0.04232765]
[1723826556354,14.417858,2599.3,2599.2,0.04232765]
[1723826556565,3.84797,2598.8,2598.2,0.1958]
[1723826556912,3.84797,2598.8,2598.3,0.04281739]
[1723826557108,3.0,2599.2,2598.3,0.04281739]
[1723826557109,2.4916,2599.3,2598.3,0.04281739]
[1723826557350,2.4916,2599.3,2598.6,3.84819]
[1723826557649,2.4916,2599.3,2598.7,0.04262603]
[1723826558350,7.357351,2599.3,2598.4,3.84839]
[1723826558552,3.84742,2599.2,2598.8,0.04254972]
[1723826558752,3.84752,2599.1,2598.2,7.89325]
[1723826559151,2.4916,2599.3,2598.3,0.04293131]
[1723826559329,2.4916,2599.3,2598.6,3.84822]
[1723826559641,6.84697,2599.5,2598.7,0.04262603]
[1723826559959,3.0,2599.5,2598.7,0.04262603]
[1723826560165,5.3228,2599.7,2598.9,3.84765]
[1723826560333,2.3228,2599.7,2598.9,3.84765]
[1723826560536,8.64654,2599.8,2599.0,0.04239713]
[1723826560718,9.895809,2599.8,2599.0,0.04239713]
[1723826561868,13.742369,2599.8,2599.0,0.04239713]
[1723826562337,9.895809,2599.8,2599.0,0.04239713]
[1723826562525,8.64653,2599.8,2599.0,3.88999713]
[1723826562924,8.64653,2599.8,2599.0,0.04239713]
[1723826563148,4.8,2599.8,2599.0,3.89002713]
[1723826563337,8.64647,2599.8,2599.0,0.04239713]
[1723826563538,4.8,2599.8,2599.3,3.84705]
[1723826563863,4.8,2599.8,2599.4,0.04194724]
[1723826564165,8.29533584,2600.2,2599.4,0.04194724]
[1723826564166,0.60345584,2600.2,2599.7,8.64559]
[1723826564376,0.1286438,2600.4,2599.7,8.64559]
[1723826564377,0.1286438,2600.4,2600.3,3.84571]
[1723826564659,0.1286438,2600.4,2600.3,18.77461079]
[1723826564846,0.1286438,2600.4,2600.3,14.92890079]
[1723826565164,0.1286438,2600.4,2600.3,19.42179087]
[1723826565372,0.1286438,2600.4,2600.3,14.62279087]
[1723826565659,0.1286438,2600.4,2600.3,23.26750087]
[1723826565816,0.1286438,2600.4,2600.3,19.01850087]
[1723826566023,0.1286438,2600.4,2600.3,7.77708087]
[1723826566338,0.1286438,2600.4,2600.3,0.04108079]
[1723826566737,0.1286438,2600.4,2599.9,9.33351]
[1723826566738,0.1286438,2600.4,2599.9,6.33351]
[1723826566947,0.1286438,2600.4,2600.3,0.0406418]
[1723826567138,0.1286438,2600.4,2599.9,3.84628]
[1723826567353,0.1286438,2600.4,2600.3,6.3608518]
[1723826567535,0.1286438,2600.4,2600.3,3.84571]
[1723826567871,0.1286438,2600.4,2600.3,3.8863518]
[1723826568122,0.1286438,2600.4,2600.3,0.0406418]
[1723826568236,0.1286438,2600.4,2599.8,3.0]
[1723826568441,0.1286438,2600.4,2600.3,0.0406418]
[1723826568626,0.1286438,2600.4,2599.6,3.8466]
[1723826568819,0.1286438,2600.4,2600.3,0.0406418]
[1723826569080,0.1286438,2600.4,2599.4,3.84697]
[1723826569279,4.8,2599.6,2599.2,3.84724]
[1723826569428,4.8,2600.0,2599.5,0.04125171]
[1723826569629,4.8,2600.0,2599.3,3.84716]
[1723826569828,4.8,2600.0,2599.6,0.04117545]
[1723826570033,4.8,2600.0,2598.9,3.84764]
[1723826570034,3.84632,2599.9,2598.9,3.84764]
[1723826570257,4.8,2600.0,2599.7,0.0410992]
[1723826570454,4.8,2600.0,2598.9,0.626584]
[1723826570671,4.8,2600.0,2599.3,3.84716]
[1723826570838,4.8,2600.0,2599.1,3.84737]
[1723826571035,8.64623,2600.0,2599.4,0.0413256]
[1723826571225,8.64623,2600.0,2599.1,4.68369847]
[1723826571226,4.8,2600.0,2599.1,4.68369847]
[1723826571528,4.8,2600.0,2599.1,0.83632847]
[1723826571529,3.84631,2599.9,2599.1,0.83632847]
[1723826572076,3.84631,2599.9,2599.2,0.04147815]
[1723826572454,4.8,2599.3,2599.2,0.04147815]
[1723826572830,1.109472,2600.0,2598.5,7.69653]
[1723826572831,3.84691,2599.5,2598.5,7.69653]
[1723826573033,3.84718,2599.3,2599.2,0.04150424]
[1723826573265,8.64718,2599.3,2598.3,6.20119]
[1723826573466,9.648919,2599.3,2598.3,10.689453]
[1723826573630,8.64718,2599.3,2598.4,3.8906094]
[1723826574073,3.0,2599.2,2598.4,0.0421194]
[1723826574271,4.8,2599.3,2598.4,0.0421194]
[1723826574494,4.8,2599.3,2598.7,3.84807]
[1723826574679,4.8,2599.3,2598.8,3.84785]
[1723826574877,4.8,2599.3,2598.9,0.769592]
[1723826575035,4.8,2599.8,2598.9,0.81132984]
[1723826575239,4.8,2599.8,2599.4,3.84703]
[1723826575573,4.8,2599.8,2599.2,3.84721]
[1723826575776,4.8,2599.8,2599.5,0.0415126]
[1723826575972,4.8,2599.8,2599.2,4.231931]
[1723826576160,4.8,2599.8,2599.6,0.04143634]
[1723826576472,4.8,2599.8,2599.7,0.04136009]
[1723826576646,3.84683,2599.6,2598.4,3.84843]
[1723826576848,0.384683,2599.5,2598.5,4.479933]
[1723826577064,4.8,2598.8,2598.5,0.631573]
[1723826577376,4.8,2599.0,2598.3,3.84863]
[1723826577564,4.8,2599.0,2598.3,0.404453]
[1723826577962,4.8,2599.0,2598.6,3.84813]
[1723826579061,4.8,2599.0,2598.4,3.84844]
[1723826579062,4.8,2599.0,2598.4,7.69683]
[1723826579262,4.8,2599.0,2598.5,4.2735493]
[1723826579463,4.8,2599.0,2598.5,0.4252893]
[1723826579864,4.8,2599.0,2598.3,0.404453]
[1723826579865,4.8,2599.0,2598.3,4.253103]
[1723826580268,4.8,2599.0,2598.4,0.04077339]
[1723826580467,4.8,2599.0,2598.6,3.84817]
[1723826580850,4.8,2599.0,2598.7,0.04054444]
[1723826581220,4.8,2599.0,2598.7,0.81424288]
[1723826581352,4.8,2599.0,2598.7,0.04054444]
[1723826581551,9.2019,2599.6,2598.7,0.04054444]
[1723826581552,8.64711,2599.4,2598.7,0.04054444]
[1723826581761,3.84727,2599.3,2598.7,0.04054444]
[1723826581988,10.432011,2599.4,2598.5,3.84836]
[1723826582196,10.432011,2599.4,2598.6,0.384836]
[1723826582197,8.64715,2599.4,2598.6,0.384836]
[1723826582352,8.64715,2599.4,2598.2,0.1958]
[1723826582353,3.84759,2599.1,2598.2,0.1958]
[1723826582548,2.3978,2599.0,2598.2,0.1958]
[1723826582787,2.3978,2599.0,2598.2,4.748993]
[1723826582948,2.3978,2599.0,2598.3,3.88947972]
[1723826583165,7.207,2599.4,2598.6,3.84822]
[1723826583362,7.207,2599.4,2598.7,0.384822]
[1723826583563,11.05407,2599.4,2598.7,0.42536644]
[1723826583795,11.05407,2599.4,2598.7,0.04054444]
[1723826584003,7.207,2599.4,2598.7,0.04054444]
[1723826584165,4.8,2599.4,2598.7,0.07694858]
[1723826584371,2.407,2599.8,2599.2,3.84724]
[1723826584372,4.8,2599.7,2599.2,3.84724]
[1723826584570,4.8,2599.7,2599.3,0.384724]
[1723826584888,4.8,2599.7,2599.3,0.04008669]
[1723826585081,4.8,2599.7,2599.2,7.69462]
[1723826585336,4.8,2599.7,2599.4,0.04001042]
[1723826585453,4.8,2599.7,2599.4,0.39641043]
[1723826585658,4.8,2599.7,2599.5,0.03993416]
[1723826587756,4.8,2599.7,2599.1,3.84739]
[1723826587757,4.8,2599.7,2598.9,6.84768]
[1723826587961,4.8,2599.9,2599.6,0.0398579]
[1723826588163,4.8,2599.9,2598.9,4.532448]
[1723826588164,3.84682,2599.6,2598.9,0.684768]
[1723826588414,2.4968,2599.7,2598.9,3.84765]
[1723826588693,2.4968,2599.7,2599.0,4.232365]
[1723826588890,2.4968,2599.7,2599.0,3.84755]
[1723826589761,2.4968,2599.7,2599.1,3.84747]
[1723826589902,2.4968,2599.7,2598.6,3.8482]
[1723826589903,6.34341,2599.7,2598.9,3.84775]
[1723826590244,2.4968,2599.7,2599.0,0.384775]
[1723826590399,3.84682,2599.6,2598.5,9.15116]
[1723826590600,3.84704,2599.4,2598.6,3.84821]
[1723826590803,8.64682,2599.6,2598.6,3.84821]
[1723826590804,9.281182,2599.6,2598.6,4.532941]
[1723826591125,3.84693,2599.5,2598.6,4.532941]
[1723826591729,3.84704,2599.4,2598.6,0.684821]
[1723826591940,0.634362,2599.5,2598.6,4.533041]
[1723826592159,2.3904,2600.1,2599.4,3.84701]
[1723826592448,3.84506,2600.8,2599.8,3.84641]
[1723826592449,2.5016438,2600.4,2599.8,3.84641]
[1723826592740,2.5016438,2600.4,2599.9,0.384641]
[1723826592954,2.5016438,2600.4,2599.7,3.84656]
[1723826593128,2.5016438,2600.4,2599.4,3.84702]
[1723826593460,2.5016438,2600.4,2599.9,3.84629]
[1723826593615,0.1286438,2600.4,2600.0,3.92292643]
[1723826593810,0.1286438,2600.4,2599.5,4.39682]
[1723826593811,0.1286438,2600.4,2600.1,0.07690679]
[1723826594561,0.1286438,2600.4,2600.1,3.92290679]
[1723826594755,0.1286438,2600.4,2600.2,3.84584]
[1723826595125,0.1286438,2600.4,2600.0,3.84604]
[1723826595334,0.1286438,2600.4,2600.3,0.03942365]
[1723826595829,0.1286438,2600.4,2600.1,3.9228271]
[1723826596027,0.1286438,2600.4,2600.3,0.03942365]
[1723826596342,0.1286438,2600.4,2600.2,3.84576]
[1723826596544,0.1286438,2600.4,2600.3,3.96204071]
[1723826596769,0.1286438,2600.4,2600.3,12.20346071]
[1723826596923,0.1286438,2600.4,2600.3,17.08947426]
[1723826597123,0.00460531,2600.4,2600.3,17.0125672]
[1723826597451,0.00460531,2600.4,2600.3,20.8582772]
[1723826597759,0.00016488,2600.4,2600.3,17.0125672]
[1723826599649,0.00016488,2600.4,2600.3,19.4098672]
[1723826600380,0.00016488,2600.4,2600.3,15.5641572]
[1723826600664,0.00016488,2600.4,2600.3,13.1668572]
[1723826601164,0.00016488,2600.4,2600.3,12.6168572]
[1723826601667,0.00016488,2600.4,2600.3,0.03942365]
[1723826601842,0.00016488,2600.4,2599.9,3.84615]
[1723826602036,0.00016488,2600.4,2600.1,3.84597]
[1723826602364,0.00016488,2600.4,2600.1,4.230497]
[1723826602570,0.00016488,2600.4,2600.2,0.03869099]
[1723826602777,2.37176488,2600.4,2600.2,0.03869099]
[1723826602974,2.37176488,2600.4,2599.7,3.8465]
[1723826603128,2.37176488,2600.4,2600.3,0.03870933]
[1723826603328,2.60894137,2600.4,2599.5,3.8468]
[1723826603755,6.45461137,2600.4,2599.6,0.03924298]
[1723826603960,3.84571,2600.3,2599.6,0.03924298]
[1723826604257,3.84617,2600.0,2599.6,0.03924298]
[1723826604528,0.64546114,2600.3,2598.9,3.84767]
[1723826604529,2.464,2599.7,2598.9,3.84767]
[1723826604918,2.464,2599.7,2599.0,0.03988983]
[1723826605120,2.464,2599.7,2599.1,3.84747]
[1723826605315,2.464,2599.7,2599.1,0.0398159]
[1723826605531,2.2619,2599.4,2598.5,3.84829]
[1723826605830,2.2619,2599.4,2598.5,3.84828]
[1723826606001,2.2619,2599.4,2598.6,3.84819]
[1723826606199,2.2619,2599.4,2598.6,3.88844892]
[1723826606398,2.2619,2599.4,2598.8,3.84789]
[1723826606910,2.2619,2599.4,2598.9,0.04003]
[1723826607627,2.2619,2599.4,2598.5,3.84833]
[1723826607784,2.2619,2599.4,2599.0,0.03999867]
[1723826607992,2.2619,2599.4,2598.5,4.233174]
[1723826608187,2.2619,2599.4,2598.6,0.04030625]
[1723826608908,6.10895,2599.4,2598.6,0.04030625]
[1723826609110,2.2619,2599.4,2598.6,3.88843625]
[1723826609300,2.2619,2599.4,2598.8,3.84791]
[1723826609499,2.2619,2599.4,2598.7,0.04025124]
[1723826609798,2.2619,2599.4,2598.8,0.04016073]
[1723826610132,6.10895,2599.4,2598.5,0.384844]
[1723826610332,6.10895,2599.4,2598.4,3.84838]
[1723826610333,3.84719,2599.3,2598.4,3.84838]
[1723826610650,3.84734,2599.2,2598.5,0.04038967]
[1723826610937,2.897421,2599.4,2598.5,4.27762664]
[1723826611108,6.10894,2599.4,2598.5,4.27762664]
[1723826612741,6.10894,2599.4,2598.6,3.84822]
[1723826613034,6.10894,2599.4,2598.7,0.04070064]
[1723826614043,6.10894,2599.4,2598.5,4.23717697]
[1723826614209,6.10894,2599.4,2598.8,0.04062433]
[1723826614408,7.129155,2599.4,2598.5,4.23717697]
[1723826614629,7.129155,2599.4,2598.6,0.04077695]
[1723826614835,2.2619,2599.4,2598.6,3.96592073]
[1723826615034,6.10903,2599.4,2598.6,0.04077695]
[1723826615234,9.95615,2599.4,2598.6,0.04077695]
[1723826615439,2.2619,2599.4,2598.2,10.42655]
[1723826615621,4.8,2599.3,2598.7,0.04069591]
[1723826616336,5.890882,2599.3,2598.7,0.04069591]
[1723826616536,5.890882,2599.3,2598.4,3.84839]
[1723826616739,5.890882,2599.3,2598.8,0.0406196]
[1723826617049,5.890882,2599.3,2598.8,3.84783]
[1723826617050,4.8,2599.3,2598.8,3.84783]
[1723826617250,4.8,2599.3,2598.6,7.69625]
[1723826617552,4.8,2599.3,2598.9,0.04056224]
[1723826617705,5.50619,2599.3,2598.6,3.84812]
[1723826617912,4.8,2599.3,2599.0,0.04048594]
[1723826618251,4.8,2599.3,2599.1,0.04040965]
[1723826618546,4.8,2599.3,2598.6,7.69626]
[1723826618858,4.8,2599.3,2598.6,4.617775]
[1723826619041,8.64719,2599.3,2598.7,0.04071484]
[1723826619376,8.64719,2599.3,2598.4,7.69685]
[1723826619663,0.402759,2599.2,2598.4,3.84842]
[1723826619965,0.402759,2599.2,2598.5,0.04086747]
[1723826620124,4.8,2599.1,2598.6,3.9250638]
[1723826620323,4.8,2599.1,2598.7,3.84795]
[1723826620525,4.8,2599.1,2598.7,3.88866484]
[1723826621455,4.8,2599.1,2598.7,0.04071484]
[1723826624373,5.28,2599.1,2598.7,0.04071484]
[1723826624645,5.28,2599.1,2598.8,0.04063854]
[1723826624853,5.28,2599.1,2598.4,3.84841]
[1723826625045,5.28,2599.1,2598.9,0.04056224]
[1723826625281,5.28,2599.1,2598.4,3.84841]
[1723826625481,4.8,2599.1,2599.0,0.04048594]
[1723826625683,4.8,2599.1,2598.4,3.84841]
[1723826625988,4.8,2599.1,2599.0,0.04048594]
[1723826626150,4.8,2599.1,2598.4,3.84841]
[1723826626352,4.8,2599.1,2599.0,0.04048594]
[1723826626579,4.8,2599.1,2598.4,3.84841]
[1723826626884,4.8,2599.1,2598.2,4.9908]
[1723826627070,4.8,2599.2,2598.4,3.84843]
[1723826627251,8.64734,2599.2,2598.4,3.84843]
[1723826627570,8.64734,2599.2,2598.5,0.04089587]
[1723826628272,3.84786,2598.9,2598.5,0.04089587]
[1723826628483,2.3617,2598.8,2598.5,0.04089587]
[1723826628842,2.3617,2598.8,2598.6,0.04081955]
[1723826629045,2.3617,2598.8,2598.2,0.1958]
[1723826629490,2.3617,2598.8,2598.3,0.04104852]
[1723826630578,4.8,2599.2,2598.3,0.04104852]
[1723826630823,2.3952,2599.1,2598.3,0.04104852]
[1723826631268,2.3952,2599.1,2598.4,3.84852]
[1723826631469,2.3952,2599.1,2598.5,3.84837]
[1723826631708,2.3952,2599.1,2598.5,3.88926587]
[1723826632063,4.8,2598.7,2598.5,3.88926587]
[1723826633214,4.8,2598.7,2598.5,3.88919587]
[1723826633361,4.8,2598.7,2598.5,4.77230594]
[1723826633703,4.8,2598.7,2598.5,8.62059594]
[1723826634006,4.8,2598.7,2598.6,3.84822]
[1723826634474,4.8,2598.7,2598.6,0.04081955]
[1723826636108,4.8,2598.7,2598.3,4.94198485]
[1723826636333,4.8,2598.7,2598.6,0.04081955]
[1723826636737,4.8,2598.7,2598.4,4.36222149]
[1723826636925,4.8,2598.7,2598.6,0.04081955]
[1723826637136,4.8,2598.7,2598.4,4.36222149]
[1723826637451,4.8,2598.7,2598.6,0.04081955]
[1723826637661,4.8,2598.7,2598.5,0.04089587]
[1723826637839,4.8,2598.7,2598.6,0.04081955]
[1723826638025,4.8,2599.0,2598.6,0.04081955]
[1723826638356,3.84778,2598.9,2598.7,0.04078821]
[1723826638512,5.4377454,2598.9,2598.2,0.1958]
[1723826638716,5.4377454,2598.9,2598.8,0.04071664]
[1723826639051,1.5899654,2598.9,2598.2,4.04453]
[1723826639259,4.8,2598.9,2598.2,5.133866]
[1723826639415,4.8,2598.9,2598.3,0.04109823]
[1723826640921,4.8,2598.9,2598.3,3.88975823]
[1723826641115,4.8,2598.9,2598.3,4.68319705]
[1723826642698,4.8,2598.9,2598.3,0.04109823]
[1723826642872,8.64779,2598.9,2598.3,0.04109823]
[1723826643462,8.64779,2598.9,2598.2,0.1958]
[1723826643664,4.8,2598.9,2598.2,4.04459]
[1723826643965,8.64776,2599.0,2598.3,0.04109823]
[1723826644189,9.272029,2599.0,2598.3,0.04109823]
[1723826644415,5.424269,2599.0,2598.3,0.04109823]
[1723826644723,4.8,2599.0,2598.4,3.84844]
[1723826645001,4.8,2599.0,2598.5,35.0]
[1723826645202,4.8,2599.0,2598.5,35.04094558]
[1723826645712,4.8,2599.0,2598.5,0.04094558]
[1723826645908,5.904271,2599.0,2598.5,0.04094558]
[1723826646114,9.751941,2599.0,2598.2,0.1958]
[1723826646402,9.751941,2599.0,2598.6,0.04086926]
[1723826646603,1.5994651,2598.9,2598.2,4.04461]
[1723826646771,1.5994651,2598.9,2598.7,0.04079295]
[1723826647100,1.5994651,2598.9,2598.2,4.04461]
[1723826647101,1.5994651,2598.9,2598.8,0.04071664]
[1723826647309,8.64767,2599.0,2598.2,4.04461]
[1723826647660,8.64767,2599.0,2598.8,0.04071664]
[1723826648065,8.64767,2599.0,2598.9,0.04068771]
[1723826648504,8.64767,2599.0,2598.2,4.04461]
[1723826648706,1.489038,2598.9,2598.2,4.04461]
[1723826650088,1.489038,2598.9,2598.2,0.1958]
[1723826650089,5.336828,2598.9,2598.2,0.1958]
[1723826650896,2.3675,2598.8,2598.2,0.1958]
[1723826652619,2.3675,2598.8,2598.3,3.8486]
[1723826652831,2.3675,2598.8,2598.3,4.25304]
[1723826653192,2.3675,2598.8,2598.3,3.8486]
[1723826653490,2.3675,2598.8,2598.2,0.1958]
[1723826655035,6.21544,2598.8,2598.2,0.1958]
[1723826655234,2.3675,2598.8,2598.2,0.1958]
[1723826655405,3.469036,2598.8,2598.3,0.0411456]
[1723826655994,7.317036,2598.8,2598.3,0.0411456]
[1723826657333,3.84815,2598.7,2598.3,0.0411456]
[1723826657548,8.64815,2598.7,2598.3,0.0411456]
[1723826657837,9.8597986,2598.7,2598.3,0.0411456]
[1723826658331,6.0117186,2598.7,2598.3,0.0411456]
[1723826658539,4.8,2598.7,2598.3,0.0411456]
[1723826658692,8.64812,2598.7,2598.3,0.0411456]
[1723826658893,8.64817,2598.7,2598.3,0.0411456]
[1723826659102,4.8,2598.7,2598.3,0.0411456]
[1723826659335,4.8,2598.7,2598.3,3.8897956]
[1723826659550,4.8,2598.7,2598.3,0.0411456]
[1723826661406,5.901529,2598.7,2598.3,0.0411456]
[1723826663506,4.8,2598.7,2598.3,0.0411456]
[1723826664205,3.84823,2598.6,2598.3,0.0411456]
[1723826664640,4.8,2598.7,2598.3,0.0411456]
[1723826664641,3.84852,2598.4,2598.3,0.0411456]
[1723826664953,3.84867,2598.3,2598.2,0.1958]
[1723826665277,0.631822,2598.3,2598.2,0.1958]
[1723826665891,4.8,2598.4,2598.2,0.1958]
[1723826666181,4.8,2598.4,2598.3,0.04136106]
[1723826670990,8.64815,2598.7,2598.3,0.04136106]
[1723826671142,10.125673,2598.7,2598.3,0.04136106]
[1723826671774,3.8483,2598.6,2598.2,0.1958]
[1723826672004,3.8483,2598.6,2598.4,0.04128473]
[1723826672179,13.973873,2598.7,2598.2,0.1958]
[1723826672477,1.0125673,2598.6,2598.5,0.04120841]
[1723826672679,1.0125673,2598.6,2598.2,0.1958]
[1723826673058,4.8607873,2598.6,2598.3,0.04136106]
[1723826673588,1.0125673,2598.6,2598.2,0.1958]
[1723826673790,1.0125673,2598.6,2598.4,0.04128473]
[1723826673997,1.0125673,2598.6,2598.2,0.1958]
[1723826674195,1.0125673,2598.6,2598.5,0.04123684]
[1723826674356,4.8,2598.7,2598.2,0.1958]
[1723826674559,4.8,2598.7,2598.5,0.04123684]
[1723826674749,4.8,2598.7,2598.2,0.1958]
[1723826675099,4.8,2598.7,2598.3,0.0413895]
[1723826676190,4.8,2598.7,2598.3,3.8899595]
[1723826676376,4.8,2598.7,2598.5,3.84827]
[1723826676576,4.8,2598.7,2598.6,0.04116052]
[1723826676777,8.64734,2599.2,2598.6,0.04116052]
[1723826677065,8.64749,2599.1,2598.2,4.0445]
[1723826677292,3.8477,2599.0,2598.7,0.04108421]
[1723826677599,3.8477,2599.0,2598.2,4.0445]
[1723826677898,4.8,2599.1,2598.4,3.84844]
[1723826678108,4.8,2599.1,2598.5,3.8483]
[1723826678461,4.8,2599.1,2598.6,0.04116052]
[1723826679377,6.19605,2598.9,2598.6,0.04116052]
[1723826679791,3.84807,2598.7,2598.2,0.1958]
[1723826680007,3.84807,2598.7,2598.3,0.0413895]
[1723826680527,3.84846,2598.5,2598.3,0.0413895]
[1723826680711,5.809871,2598.4,2598.3,0.0413895]
[1723826680907,5.809871,2598.4,2598.2,0.1958]
[1723826681482,9.658401,2598.4,2598.2,0.1958]
[1723826681884,9.658401,2598.4,2598.3,0.04135397]
[1723826682312,9.658401,2598.4,2598.2,0.1958]
[1723826682512,1.3506771,2598.3,2598.2,0.1958]
[1723826682695,9.658401,2598.4,2598.2,0.1958]
[1723826682989,9.658401,2598.4,2598.2,0.23730846]
[1723826683203,4.8,2598.4,2598.2,0.23730846]
[1723826685626,4.8,2598.5,2598.2,0.23730846]
[1723826687123,8.64838,2598.5,2598.2,0.23730846]
[1723826688115,8.64838,2598.5,2598.2,0.1958]
[1723826688312,3.84861,2598.4,2598.2,0.1958]
[1723826688487,3.84861,2598.4,2598.3,0.04143922]
[1723826688688,3.84867,2598.3,2598.2,0.1958]
[1723826690524,7.69734,2598.3,2598.2,0.1958]
[1723826691226,3.84867,2598.3,2598.2,0.1958]
[1723826691690,4.8,2598.3,2598.2,0.1958]
[1723826692083,4.8,2598.3,2598.2,0.2373724]
[1723826693187,4.8,2598.3,2598.2,0.1958]
[1723826693713,4.8,2598.3,2598.2,0.23733924]
[1723826696850,4.8,2598.3,2598.2,0.1958]
[1723826698400,4.8,2598.3,2598.2,0.23734871]
[1723826698606,4.8,2598.3,2598.2,0.1958]
[1723826698810,4.8,2598.3,2598.2,0.23734871]
[1723826699012,4.8,2598.8,2598.3,3.84866]
[1723826699214,4.8,2598.8,2598.4,0.44999928]
[1723826699364,4.8,2598.8,2598.7,7.69614]
[1723826699561,4.8,2599.2,2598.8,3.84782]
[1723826699866,4.8,2599.3,2598.9,0.04094816]
[1723826700221,4.8,2599.3,2598.7,4.46955708]
[1723826700503,4.8,2599.3,2598.8,0.04101973]
[1723826700811,8.6472,2599.3,2598.4,0.40860087]
[1723826701017,3.84757,2599.1,2598.5,0.04115632]
[1723826701164,3.84757,2599.1,2598.4,3.84852]
[1723826701365,8.6473,2599.3,2598.5,0.04115632]
[1723826701687,4.8,2599.3,2598.7,3.84797]
[1723826701910,4.8,2599.3,2598.8,3.84792]
[1723826702203,4.8,2599.3,2599.0,3.84755]
[1723826702410,4.8,2599.3,2599.1,0.384755]
[1723826702610,4.8,2599.3,2599.2,0.04059618]
[1723826702817,4.8,2599.3,2598.9,3.84777]
[1723826703120,4.8,2599.3,2599.0,0.04074875]
[1723826703267,4.8,2599.6,2599.2,3.84733]
[1723826703467,4.8,2599.6,2599.0,0.59074875]
[1723826703468,4.8,2599.6,2599.0,0.42960063]
[1723826703688,4.8,2599.6,2598.8,3.84783]
[1723826703689,4.8,2599.6,2599.3,0.04045836]
[1723826703975,4.8,2599.6,2599.4,0.04038209]
[1723826704285,4.8,2599.6,2599.0,3.84761]
[1723826704640,4.8,2599.6,2599.0,3.84754]
[1723826704776,4.8,2599.6,2599.1,3.84747]
[1723826705108,4.8,2599.6,2599.3,3.84711]
[1723826705311,4.8,2599.6,2599.2,4.231997]
[1723826705614,4.8,2599.6,2599.3,0.04045836]
[1723826705931,4.8,2599.9,2599.3,0.04045836]
[1723826706210,3.84682,2599.6,2598.8,3.84791]
[1723826706371,0.384682,2599.5,2598.9,0.0407635]
[1723826706708,0.384682,2599.5,2598.8,3.84791]
[1723826707472,0.384682,2599.5,2598.9,0.0407635]
[1723826707900,0.384682,2599.5,2598.9,3.8885335]
[1723826708082,4.8,2599.6,2599.1,3.84747]
[1723826708484,4.8,2599.6,2599.2,0.04029787]
[1723826708882,10.12525,2599.6,2598.8,3.84782]
[1723826709082,6.27849,2599.6,2599.3,0.04022159]
[1723826709409,2.2919,2599.8,2598.4,2.2721]
[1723826709410,2.4399,2599.4,2598.4,2.2721]
[1723826709610,3.8476,2599.1,2598.5,0.04083197]
[1723826709855,4.795,2599.2,2598.2,4.04452]
[1723826709856,7.1596,2599.0,2598.3,3.84855]
[1723826710039,4.8,2598.9,2598.6,0.04075565]
[1723826710214,4.8,2598.9,2598.3,3.84855]
[1723826710425,4.8,2598.9,2598.5,3.84835]
[1723826710644,4.8,2598.9,2598.6,0.04077222]
[1723826710848,4.8,2598.9,2598.3,7.69713]
[1723826711022,4.8,2598.9,2598.7,0.04077403]
[1723826711229,4.8,2598.9,2598.3,7.69711]
[1723826711422,5.51596,2598.9,2598.4,0.04100298]
[1723826711615,9.36374,2598.9,2598.2,0.1958]
[1723826711838,2.4829,2598.5,2598.3,0.04109115]
[1723826712029,2.4829,2598.5,2598.2,0.1958]